[Event "Chessable English Open-ch 2022"]
[Site "Kenilwoth"]
[Date "2022.05.22"]
[Round "7.3"]
[White "Roberson, Peter T"]
[Black "Wells, Peter K"]
[Result "1-0"]
[ECO "C92"]
[WhiteElo "2421"]
[BlackElo "2374"]
[Annotator "TA"]
[PlyCount "90"]
[EventDate "2022.05.18"]
[EventType "swiss"]
[EventCountry "ENG"]
[SourceTitle "playchess.com"]
[Source "ChessBase"]
[SourceQuality "1"]
[TimeControl "5400+30"]

{[%evp 19,90,32,18,12,31,9,19,7,92,20,24,17,17,16,9,12,31,22,41,43,77,65,62,34,49,38,50,52,45,0,31,27,196,16,17,-12,0,0,0,0,0,0,0,0,-2,-7,0,0,0,0,0,0,2,-14,0,-32,7,-42,2,0,0,0,0,0,9,5,11,8,68,91,481,488,487]} 1. e4 {[%emt 0:00:04]} e5 {[%emt 0:08:05]} 2. Nf3 {[%emt 0:00:12]} Nc6 {[%emt 0:00:06]} 3. Bb5 {[%emt 0:00:15][%cal Bf1b5,Bb5a4,Ba4b3,Bb3a2][%mdl 32]} a6 {[%emt 0:00:12]} 4. Ba4 {[%emt 0:00:07]} Nf6 {[%emt 0:00:05]} 5. O-O {[%emt 0:00:08]} Be7 {[%emt 0:00:05]} 6. Re1 {[%emt 0:00:10]} b5 {[%emt 0:00:05]} 7. Bb3 {[%emt 0:00:04]} d6 {[%emt 0:00:22]} 8. c3 {[%emt 0:00:22]} O-O {[%emt 0:00:12]} 9. h3 {[%emt 0:00:08]} Bb7 {[%emt 0:00:30]} 10. d4 {[%emt 0:00:50]} Re8 {[%emt 0:00:26]} 11. a3 {[%emt 0:00:58] C92: Closed Ruy Lopez: 9...Be6, Karpov and Flohr-Zaitsev Variations.} Bf8 {[%emt 0:12:56]} 12. Ba2 {[%emt 0:01:37]} h6 {[%emt 0:03:12]} (12... Na5 {is more complex.} 13. Nbd2 c5 14. b4 exd4 15. cxd4 Nc4) 13. d5 {[%emt 0:03:35] [#] The position is equal.} (13. Nbd2 {keeps more tension.} Nb8 14. Qb3 Qd7 15. Qc2) 13... Na5 $146 {[%emt 0:18:05]} (13... Nb8 $11 {keeps the balance.}) ({Predecessor:} 13... Ne7 14. b3 c5 15. c4 bxc4 16. bxc4 Ng6 17. Bb3 Bc8 18. Ba4 Bd7 19. Nc3 Rb8 {0-1 (49) Firouzja,A (2759)-Le,Q (2709) chess24.com INT 2021}) 14. b3 {[%emt 0:10:16]} (14. Nfd2 $1 $16) 14... c6 $11 {[%emt 0:04:31][%cal Rc6d5]} 15. c4 {[%emt 0:00:15]} Rc8 {[%emt 0:05:02]} 16. Nbd2 {[%emt 0:09:41]} bxc4 {[%emt 0:05:08]} ({But not} 16... cxd5 17. cxd5 Nh7 18. Nf1 $16) 17. bxc4 {[%emt 0:00:27]} Nd7 {[%emt 0:01:54]} 18. Rb1 {[%emt 0:06:41]} Qc7 {[%emt 0:04:53]} 19. Nf1 {[%emt 0:09:55]} Nc5 {[%emt 0:04:16]} 20. Bd2 {[%emt 0:12:07]} Ra8 {[%emt 0:05:51]} 21. N3h2 {[%emt 0:18:04]} cxd5 {[%emt 0:05:36]} 22. cxd5 {[%emt 0:00:39]} Reb8 {[%emt 0:00:04]} 23. Qf3 {[%emt 0:10:20]} Bc8 {[%emt 0:03:28]} 24. Rb4 {[%emt 0:00:32]} Bd7 {[%emt 0:03:11]} 25. Ng4 {[%emt 0:01:53]} h5 $2 {[%emt 0:02:35] [#]} (25... Bxg4 $11 26. hxg4 Be7) 26. Ngh2 $2 {[%emt 0:05:55]} ({White should try} 26. Nf6+ $1 $18 {[%mdl 512]} gxf6 27. Ng3) 26... g6 {[%emt 0:00:57]} 27. Qc3 {[%emt 0:00:48] Black must now prevent Rxb8.} Rb5 {[%emt 0:01:11]} 28. Nf3 {[%emt 0:02:06]} Qd8 {[%emt 0:01:42]} 29. Ng3 {[%emt 0:02:28]} Nab7 {[%emt 0:01:23]} 30. Bc4 {[%emt 0:01:40]} Rxb4 {[%emt 0:00:52]} 31. axb4 {[%emt 0:00:02]} Na4 {[%emt 0:00:35]} 32. Qe3 {[%emt 0:01:31]} a5 {[%emt 0:01:48]} 33. Be2 {[%emt 0:01:01]} axb4 {[%emt 0:01:33]} 34. Bxb4 {[%emt 0:00:03]} Nac5 {[%emt 0:00:26]} 35. Nd2 {[%emt 0:00:36]} Qf6 {[%emt 0:03:04]} 36. Nc4 {[%emt 0:01:20]} Ra2 {[%emt 0:00:26]} 37. Nb6 {[%emt 0:00:51]} Be8 {[%emt 0:00:35]} (37... Bxh3 $5 38. gxh3 Rb2 39. Bxc5 Nxc5 $11) 38. Nc4 {[%emt 0:01:08] Inhibits Rb2.} (38. Rb1 $1 $11) 38... Kh7 {[%emt 0:01:47]} 39. Rb1 {[%emt 0:00:28]} Bh6 {[%emt 0:01:53]} 40. Qf3 {[%emt 0:00:02]} Qxf3 {[%emt 0:00:54]} 41. Bxf3 {[%emt 0:00:02][%cal Oc4d6]} Ra6 {[%emt 0:00:32]} 42. Be2 {[%emt 0:00:55]} h4 {[%emt 0:00:17]} 43. Nf1 {[%emt 0:00:06][%cal Oc4e5]} Nxe4 {[%emt 0:00:22]} ({Better is} 43... Kg7 $11) 44. Ncd2 $14 {[%emt 0:01:05][%mdl 64] Discovered Attack} Ra2 {[%emt 0:00:51][%mdl 8192]} (44... Nxd2 $16 45. Bxa6 Nxb1 46. Bxb7 f6) 45. Nxe4 $18 {[%emt 0:00:11]} Kg8 {[%emt 0:01:02] Weighted Error Value: White=0.23 (precise) /Black=0.39} 1-0

[Event "Chessable English Open-ch 2022"]
[Site "Kenilwoth"]
[Date "2022.05.22"]
[Round "7.4"]
[White "Willow, Jonah B"]
[Black "Ashton, Adam G"]
[Result "0-1"]
[ECO "A13"]
[WhiteElo "2401"]
[BlackElo "2366"]
[Annotator "TA"]
[PlyCount "91"]
[EventDate "2022.05.18"]
[EventType "swiss"]
[EventCountry "ENG"]
[SourceTitle "playchess.com"]
[Source "ChessBase"]
[SourceQuality "1"]
[TimeControl "5400+30"]

{[%evp 14,91,0,0,0,5,2,-43,-45,-26,-41,-29,-31,-41,-47,-106,-105,-99,-104,-107,-102,-241,-143,-319,-223,-440,-417,-595,-575,-819,-831,-822,-822,-829,-818,-760,-276,-256,-164,-152,-171,-166,-177,-253,-244,-222,-214,-267,-256,-460,-472,-456,-106,-131,-133,-131,0,-154,-147,-225,-40,-363,-360,-343,-351,-330,-289,-484,-458,-866,-849,-849,-854,-845,-842,-766,-758,-801,-775,-668]} 1. Nf3 {[%emt 0:00:49]} d5 {[%emt 0:03:31]} 2. e3 {[%emt 0:00:12]} Nf6 {[%emt 0:00:41]} 3. c4 {[%emt 0:00:11]} e6 {[%emt 0:01:22]} 4. b3 {[%emt 0:02:28]} c5 {[%emt 0:00:11]} 5. Bb2 {[%emt 0:17:22]} Nc6 {[%emt 0:00:34]} 6. cxd5 {[%emt 0:00:40]} exd5 {[%emt 0:00:58]} 7. Bb5 {[%emt 0:05:16]} Bd6 {[%emt 0:04:02]} 8. O-O {[%emt 0:00:51]} O-O {[%emt 0:00:48] A13: English Opening: 1...e6.} 9. d4 {[%emt 0:00:25]} cxd4 {[%emt 0:03:38]} 10. Bxc6 {[%emt 0:01:25]} bxc6 {[%emt 0:00:21] Black is slightly better.} 11. Qxd4 {[%emt 0:03:25]} c5 {[%emt 0:11:16]} 12. Qd3 {[%emt 0:02:16] [#]} Re8 $146 {[%emt 0:09:09]} ({Predecessor:} 12... Bb7 13. Nc3 Rc8 14. Rfd1 Qe7 15. Qf5 Qe6 16. Qxe6 fxe6 17. Rac1 Nd7 18. Ba3 Bc6 {½-½ (38) Maghsoodloo,P (2572)-Hakobyan,A (2479) Yerevan 2018}) 13. Nc3 {[%emt 0:08:14]} Bg4 {[%emt 0:07:37] This bishop pair is nice.} 14. Rfd1 {[%emt 0:12:41]} (14. Nb5 $15) 14... Bxf3 $17 {[%emt 0:05:42]} 15. gxf3 {[%emt 0:01:10] [#]} d4 {[%emt 0:01:20]} 16. Nb5 {[%emt 0:10:01]} (16. exd4 Nh5 17. Ne4 Bxh2+ 18. Kxh2 Nf4 $19) 16... Bb8 $36 {[%emt 0:16:11][%mdl 2048] Keeping White busy.} 17. Rac1 {[%emt 0:13:42]} (17. exd4 $17 a6 18. Na3) 17... a6 {[%emt 0:05:12]} (17... Qd5 $19 18. f4 Qf3 19. Bxd4 Ng4) 18. Na3 $2 {[%emt 0:00:16]} (18. Nxd4 $17 {keeps fighting.} cxd4 19. Qxd4 Qxd4 20. Bxd4) 18... Nd5 {[%emt 0:20:55]} 19. f4 $2 {[%emt 0:12:07]} (19. Rxc5 Qg5+ 20. Kf1 Nxe3+ 21. fxe3 (21. Qxe3 $2 dxe3 22. Rxg5 e2+ 23. Ke1 exd1=N+ 24. Kxd1 g6 $19) 21... Qxc5 22. Qxd4) 19... Qh4 $19 {[%emt 0:01:36] Threatens to win with ...Qg4+.} 20. Qf5 {[%emt 0:01:29] [#] Against Qg4+} (20. Nc2 {was worth a try.} Bd6 21. Nxd4 (21. Qf5 $2 Nxf4 22. exf4 Re2 $19) 21... cxd4 22. Qxd4) 20... Nxf4 $1 {[%emt 0:01:28][%mdl 512]} 21. exf4 {[%emt 0:00:42]} (21. Bxd4 Ne2+) 21... Bxf4 {[%emt 0:00:12]} 22. Qd5 {[%emt 0:00:35]} Qxh2+ {[%emt 0:00:15]} 23. Kf1 {[%emt 0:00:01]} Bxc1 {[%emt 0:01:03]} 24. Bxc1 {[%emt 0:00:27]} Rad8 $2 {[%emt 0:00:33]} (24... Qh3+ 25. Qg2 Qh5) 25. Qf3 {[%emt 0:00:29]} Qe5 {[%emt 0:01:40] Prevents Bg5.} 26. Nc4 {[%emt 0:00:14]} Qe6 {[%emt 0:00:04]} 27. Bd2 {[%emt 0:00:40]} Qg6 {[%emt 0:00:47]} 28. Ba5 {[%emt 0:00:39]} (28. Bf4 $142) 28... Rc8 {[%emt 0:01:05][%cal Bd8c8,Bc8c6,Bc6e6,Be6e4,Be4d4][%mdl 32]} 29. Nb6 {[%emt 0:01:33][%cal Bc4b6,Bb6d5,Bd5c7][%mdl 32] [#]} Rc6 {[%emt 0:00:55] aiming for ...Rf6.} 30. Nd5 {[%emt 0:00:42] Prevents Rf6.} h6 {[%emt 0:00:49]} 31. Bd8 $2 {[%emt 0:00:13]} (31. Bc7) 31... Rce6 {[%emt 0:00:41]} 32. Bh4 {[%emt 0:00:44]} Qe4 $2 {[%emt 0:00:49]} (32... Re4 $19 33. Ne7+ R4xe7 34. Bxe7 Rxe7) 33. Qxe4 $17 {[%emt 0:00:07]} Rxe4 {[%emt 0:00:01] The board is on fire.} 34. Bg3 {[%emt 0:00:09]} f5 {[%emt 0:00:56]} (34... Rd8 $17 35. Nc7 a5) 35. Nc7 {[%emt 0:00:42]} (35. f3 $1 $11 Re2 36. Nc7) 35... Rc8 {[%emt 0:00:22] ...f4 is the strong threat.} 36. Bd6 {[%emt 0:00:29]} (36. f3 $17 {is a better defense.} Re7 37. Nd5) 36... g5 $2 {[%emt 0:00:52]} ({Black should try} 36... Kf7 $19 {And now ...h5 would win.} 37. f3 Re3) 37. Rc1 $2 {[%emt 0:00:26][%mdl 8192]} (37. f3 $1 $15 Rh4 38. Kg2) 37... d3 $19 {[%emt 0:00:28]} 38. Rd1 {[%emt 0:00:55]} Rd4 {[%emt 0:00:30]} 39. Be5 {[%emt 0:01:07]} ({But not} 39. Bxc5 Rh4 40. Rxd3 Rxc7 $19) 39... Rd7 {[%emt 0:00:08]} ({Not} 39... Re4 $2 40. Bd6 $19) 40. Nxa6 $2 {[%emt 0:00:09]} (40. f4) 40... c4 {[%emt 0:00:28] Black is clearly winning.} 41. Nb4 {[%emt 0:00:23]} (41. bxc4 $142 Rxc4 42. a3) 41... c3 {[%emt 0:01:09] Hoping for ...c2.} 42. Rxd3 {[%emt 0:00:28]} c2 {[%emt 0:00:27]} 43. Bb2 {[%emt 0:03:11]} c1=Q+ {[%emt 0:00:10]} 44. Bxc1 {[%emt 0:00:02]} Rxc1+ {[%emt 0:00:05]} 45. Ke2 {[%emt 0:00:04]} Rxd3 {[%emt 0:00:21]} 46. Nxd3 {[%emt 0:00:38] Weighted Error Value: White=0.89/Black=0.45} 0-1

[Event "Chessable English Open-ch 2022"]
[Site "Kenilwoth"]
[Date "2022.05.22"]
[Round "7.5"]
[White "Haydon, David L"]
[Black "Harvey, Marcus R"]
[Result "0-1"]
[ECO "A30"]
[WhiteElo "2275"]
[BlackElo "2455"]
[Annotator "TA"]
[PlyCount "138"]
[EventDate "2022.05.18"]
[EventType "swiss"]
[EventCountry "ENG"]
[SourceTitle "playchess.com"]
[Source "ChessBase"]
[SourceQuality "1"]
[TimeControl "5400+30"]

{[%evp 16,138,18,26,35,-10,10,-7,0,-3,0,0,10,-14,-17,-17,-27,-17,15,-20,0,0,0,1,1,0,1,0,0,0,54,16,19,16,16,15,21,19,10,12,14,8,16,0,0,0,0,0,0,0,0,0,0,0,0,0,0,0,0,0,0,0,0,0,0,0,0,0,0,-8,0,-4,-4,-76,0,0,0,0,0,-4,-4,-32,-24,-227,-212,-342,-923,-655,-652,-744,-710,-2066,-644,-1273,-1421,-1674,-1819,-1427,-929,-783,0,-1457,-340,-1583,-1501,-1380,-1367,-1146,-999,-12829,-760,-742,-599,-2472,-312,-12836,-12837,-12840,-12840,-12841,-12841,-12842,-12841,-12839,-12836]} 1. d4 {[%emt 0:00:02]} Nf6 {[%emt 0:06:21]} 2. c4 {[%emt 0:00:22]} e6 {[%emt 0:00:29]} 3. Nf3 {[%emt 0:00:07]} b6 {[%emt 0:01:00]} 4. g3 {[%emt 0:01:12]} Bb7 {[%emt 0:00:03]} 5. Bg2 {[%emt 0:00:06]} c5 {[%emt 0:00:02]} 6. O-O {[%emt 0:03:14]} cxd4 {[%emt 0:00:18]} 7. Nxd4 {[%emt 0:01:51]} Bxg2 {[%emt 0:00:07]} 8. Kxg2 {[%emt 0:00:04]} Qc8 {[%emt 0:01:39]} 9. b3 {[%emt 0:01:57]} Qb7+ {[%emt 0:00:04] A30: Symmetrical English: Double Fianchetto and Hedgehog.} 10. Nf3 {[%emt 0:01:18]} Be7 {[%emt 0:00:27]} 11. Nc3 {[%emt 0:05:46]} O-O {[%emt 0:02:57] The position is equal.} 12. Bb2 {[%emt 0:01:35] [#]} Rd8 $146 {[%emt 0:01:50]} ({Predecessor:} 12... a6 13. Kg1 d6 14. Nd4 Nc6 15. Nxc6 Qxc6 16. Qd3 Rfd8 17. Rac1 Qb7 18. Rfd1 Rab8 19. a4 d5 20. cxd5 Nxd5 21. Nxd5 Rxd5 {½-½ (21) Padevsky,N (2415)-Martinovic,S (2475) Baku 1980}) 13. Qc2 {[%emt 0:00:20]} Nc6 {[%emt 0:03:02]} 14. Rad1 {[%emt 0:01:07]} a6 {[%emt 0:05:07]} 15. Ne4 {[%emt 0:08:58]} (15. a4 {is interesting.} Ne5 16. e4 Nxf3 17. Kxf3 b5 18. axb5 axb5 19. Nxb5 d5 20. Bxf6 gxf6 21. g4) 15... Ne8 {[%emt 0:09:00]} 16. Kg1 {[%emt 0:03:53]} f5 {[%emt 0:01:20]} 17. Nc3 {[%emt 0:01:55]} b5 {[%emt 0:00:37]} (17... Nb4 $5 {[%cal Rb4c2]} 18. Qd2 b5 $11) 18. e4 {[%emt 0:02:42]} Na5 {[%emt 0:05:11]} 19. Nd2 {[%emt 0:15:54]} bxc4 {[%emt 0:03:22]} 20. exf5 {[%emt 0:01:34]} (20. Nxc4 {looks sharper.} Nxc4 21. bxc4 Rab8 22. Rb1) 20... cxb3 {[%emt 0:00:07]} 21. Nxb3 {[%emt 0:02:17]} Nxb3 {[%emt 0:02:41]} 22. axb3 {[%emt 0:00:08]} Rdb8 {[%emt 0:02:06]} (22... Rab8 $11) 23. fxe6 {[%emt 0:02:16]} (23. Qe2 $5 {[%cal Rf5e6]} Qxb3 24. Ba1 $11) 23... dxe6 {[%emt 0:01:40]} 24. Qe2 {[%emt 0:04:00]} Qxb3 {[%emt 0:10:56]} 25. Ba1 {[%emt 0:02:07]} Bf6 {[%emt 0:01:06]} 26. Rb1 {[%emt 0:01:00]} Qa3 {[%emt 0:00:01]} 27. Qxe6+ {[%emt 0:01:12]} Kh8 {[%emt 0:00:03]} 28. Rxb8 {[%emt 0:01:08]} Rxb8 {[%emt 0:00:17]} 29. Rb1 {[%emt 0:08:33]} Qd6 {[%emt 0:09:51]} 30. Qf7 {[%emt 0:07:15] [#] Rxb8 would kill now.} Qe7 {[%emt 0:03:14]} 31. Qa2 {[%emt 0:05:47]} Rxb1+ {[%emt 0:00:38]} 32. Qxb1 {[%emt 0:00:32]} Qe5 {[%emt 0:00:35]} 33. Bb2 {[%emt 0:01:55]} h6 {[%emt 0:08:09]} 34. Na4 {[%emt 0:05:36]} Qe2 {[%emt 0:00:40]} 35. Bxf6 {[%emt 0:00:23]} Nxf6 $11 {[%emt 0:00:18][%mdl 4096] Endgame KQN-KQN} 36. Nc5 {[%emt 0:00:44] Against Ne4} Qb5 {[%emt 0:00:20]} 37. Qf5 {[%emt 0:00:45]} a5 {[%emt 0:01:32] Strongly threatening ...a4.} 38. Qc8+ {[%emt 0:01:30]} Ng8 {[%emt 0:02:19] And now ...a4 would win.} 39. Qc7 {[%emt 0:00:04]} Qb4 {[%emt 0:01:12] ...a4 is the strong threat.} 40. Qa7 {[%emt 0:02:52]} Nf6 {[%emt 0:00:33]} 41. Kg2 {[%emt 0:01:47]} Kh7 {[%emt 0:00:22]} 42. h3 {[%emt 0:00:32]} Qd2 {[%emt 0:02:45]} 43. Qb6 {[%emt 0:02:04]} Qd5+ {[%emt 0:01:53]} 44. Kh2 {[%emt 0:00:54] [#]} (44. Kg1 $11) 44... Qd4 {[%emt 0:01:02]} (44... Qa2 $1 $17 {[%cal Ra2f2]} 45. Ne6 a4 46. Nf8+ Kg8) 45. Qb1+ {[%emt 0:00:55]} Kh8 {[%emt 0:00:03]} 46. Qc2 {[%emt 0:00:47]} Qd5 {[%emt 0:01:49]} 47. Na4 {[%emt 0:01:03]} Ne4 {[%emt 0:02:09] aiming for ...Qf5.} 48. Qc8+ {[%emt 0:00:16]} Kh7 {[%emt 0:00:04]} 49. Qc2 $2 {[%emt 0:00:04] Black converts the advantage convincingly.} (49. Nc3 $11 {and White stays safe.} Nxc3 50. Qxc3) 49... Qf5 $19 {[%emt 0:00:07]} 50. g4 {[%emt 0:01:54]} (50. Nc3 {might work better.} Nxg3 51. Qa2) 50... Qxf2+ {[%emt 0:00:26]} 51. Qxf2 {[%emt 0:00:05]} Nxf2 {[%emt 0:00:04] KN-KN} 52. Kg3 {[%emt 0:00:02]} Nd3 {[%emt 0:00:26] White must now prevent ...g5.} 53. Kf3 {[%emt 0:00:24]} Kg6 {[%emt 0:00:15]} (53... g5 $142 54. Nc3 Kg6) 54. Ke3 {[%emt 0:00:21]} Ne5 {[%emt 0:00:16]} 55. Kf4 {[%emt 0:00:20]} Kf6 {[%emt 0:01:24]} 56. Nc5 {[%emt 0:00:19]} Ng6+ {[%emt 0:00:36]} 57. Ke4 {[%emt 0:00:18]} Ne5 {[%emt 0:02:12]} (57... Nh4 $142 58. Kd5 Ng2 59. Ne4+ Ke7) 58. Kf4 $1 {[%emt 0:00:14]} Nc4 $2 {[%emt 0:02:32]} (58... g5+ 59. Ke3 Ng6) 59. Na4 $2 {[%emt 0:00:20]} (59. Ke4 Ne5 60. Kd5) 59... g5+ {[%emt 0:02:56]} 60. Ke4 {[%emt 0:00:13]} Ne5 {[%emt 0:01:11]} 61. Nc5 {[%emt 0:00:22]} Ng6 {[%emt 0:00:46] Hoping for ...Ke7.} 62. Na4 {[%emt 0:00:01]} Nf8 {[%emt 0:00:11]} (62... Nf4 $142 63. Nb6 Nxh3 64. Nd7+ Ke6 65. Nc5+ Ke7) 63. Nc5 {[%emt 0:00:22]} Ne6 {[%emt 0:00:37]} 64. Na4 {[%emt 0:00:23]} Kf7 $2 {[%emt 0:00:26]} (64... Nf4 65. Nb6 Nxh3 66. Nd7+ Ke6 67. Nc5+ Ke7) 65. Ke5 $2 {[%emt 0:00:24]} (65. Kf5) 65... Nf4 {[%emt 0:00:08] Black is clearly winning.} 66. Kf5 {[%emt 0:01:07]} Nxh3 {[%emt 0:00:13]} 67. Nc5 {[%emt 0:00:06]} Nf2 {[%emt 0:00:11]} 68. Na4 {[%emt 0:00:18]} Ke8 {[%emt 0:00:30]} 69. Nc5 {[%emt 0:00:03]} Ke7 {[%emt 0:08:12] Weighted Error Value: White=0.53/Black=0.45} 0-1

[Event "Chessable English Open-ch 2022"]
[Site "Kenilwoth"]
[Date "2022.05.22"]
[Round "7.6"]
[White "Pert, Richard G"]
[Black "Royal, Shreyas"]
[Result "1/2-1/2"]
[ECO "D02"]
[WhiteElo "2415"]
[BlackElo "2385"]
[Annotator "TA"]
[PlyCount "76"]
[EventDate "2022.05.18"]
[EventType "swiss"]
[EventCountry "ENG"]
[SourceTitle "playchess.com"]
[Source "ChessBase"]
[SourceQuality "1"]
[TimeControl "5400+30"]

{[%evp 9,76,2,10,12,10,0,10,0,0,0,0,0,0,0,0,0,0,5,33,12,12,12,52,0,0,0,0,-4,-4,-8,2,-110,0,-4,0,3,11,-18,-16,-16,-16,-20,6,0,0,0,0,0,18,0,0,0,0,0,57,0,0,0,0,0,0,0,0,0,0,0,4,0,12]} 1. d4 {[%emt 0:00:06]} Nf6 {[%emt 0:00:04]} 2. Nf3 {[%emt 0:00:20]} d5 {[%emt 0:00:05]} 3. Bf4 {[%emt 0:00:09]} c5 {[%emt 0:00:16]} 4. e3 {[%emt 0:00:07]} Nc6 {[%emt 0:00:07]} 5. Nbd2 {[%emt 0:00:10]} cxd4 {[%emt 0:00:11]} 6. exd4 {[%emt 0:00:13] D02: 1 d4 d5 2 Nf3 sidelines, including 2...Nf6 3 g3 and 2...Nf6 3 Bf4.} Bf5 {[%emt 0:00:10]} 7. Bb5 {[%emt 0:01:30]} Rc8 {[%emt 0:01:50]} 8. O-O {[%emt 0:06:15]} e6 {[%emt 0:00:07] [#]} 9. Re1 $146 {[%emt 0:09:25]} ({Predecessor:} 9. c3 Be7 10. Ne5 O-O 11. Nxc6 bxc6 12. Ba6 c5 13. Bxc8 Qxc8 14. Nf3 Qb7 15. b3 {0-1 (23) Aryan,C (2585)-Vokhidov,S (2530) Chess.com INT 2021}) 9... Be7 {[%emt 0:00:54]} 10. c3 {[%emt 0:02:48]} O-O {[%emt 0:05:32]} 11. a4 {[%emt 0:06:31]} Qb6 {[%emt 0:09:09]} 12. Nb3 {[%emt 0:11:02]} Ne4 {[%emt 0:18:51]} 13. Bf1 {[%emt 0:14:47]} Na5 {[%emt 0:00:45]} 14. Nxa5 {[%emt 0:00:37]} Qxa5 {[%emt 0:00:10]} 15. Ne5 {[%emt 0:01:32]} Nd6 {[%emt 0:07:24]} 16. Nd7 {[%emt 0:10:23]} (16. g4 $14 Bg6 17. h4 (17. Nxg6 hxg6 18. Qb3 Qd8 $11)) 16... Rfd8 $11 {[%emt 0:04:59]} 17. Nc5 {[%emt 0:00:09] [#] aiming for Bxd6.} Qb6 {[%emt 0:00:04]} 18. b4 {[%emt 0:03:46]} Qc7 {[%emt 0:02:18]} 19. Rc1 {[%emt 0:06:14]} b6 {[%emt 0:01:35]} 20. Bg3 {[%emt 0:06:23]} bxc5 {[%emt 0:02:53]} ({Black should try} 20... Bg5 $17 21. f4 Be7) 21. dxc5 {[%emt 0:00:06]} Qb7 {[%emt 0:01:48] ...Ne4 is the strong threat.} 22. cxd6 {[%emt 0:00:08]} Bxd6 {[%emt 0:00:07]} 23. Qe2 {[%emt 0:02:01]} Bxg3 {[%emt 0:00:33]} (23... d4 {is interesting.} 24. Bxd6 d3 25. Qe5 d2) 24. hxg3 {[%emt 0:00:07]} d4 {[%emt 0:04:07]} 25. cxd4 {[%emt 0:00:42]} Rxc1 {[%emt 0:01:17]} (25... Rxd4 26. Qb5 Qb8 27. Rxc8+ Qxc8 {[#]} 28. Rc1 $1 $14) 26. Rxc1 {[%emt 0:00:11]} Qxb4 {[%emt 0:00:06]} 27. g4 {[%emt 0:01:39]} Bg6 {[%emt 0:02:29]} 28. Rc4 {[%emt 0:00:44]} Qb6 {[%emt 0:01:19]} 29. Qe5 {[%emt 0:01:08]} h6 {[%emt 0:00:57]} 30. a5 {[%emt 0:01:11]} Qb2 {[%emt 0:02:36]} 31. Qc5 {[%emt 0:03:24]} Qb8 {[%emt 0:04:59]} (31... Kh7 $11) 32. Qc7 {[%emt 0:01:23]} (32. a6 $14) 32... Qxc7 {[%emt 0:00:48] The position is equal.} 33. Rxc7 {[%emt 0:00:05]} Rxd4 {[%emt 0:00:04] KRB-KRB} 34. f3 {[%emt 0:00:22]} Bd3 {[%emt 0:00:34]} 35. Bxd3 {[%emt 0:00:53]} Rxd3 {[%emt 0:00:06]} 36. Rxa7 {[%emt 0:00:06]} Ra3 {[%emt 0:00:37]} 37. Kf2 {[%emt 0:12:23]} g5 {[%emt 0:02:39]} 38. g3 {[%emt 0:00:00]} Kg7 {[%emt 0:00:15] Weighted Error Value: White=0.13 (very precise) /Black=0.15 (very precise)} 1/2-1/2